{"text_format":"1","workbook":"xlsx","n_sheets":3,"sheets":["Só Remanejamento","Só Rendimentos","Remanejamento e Rendimentos"],"not_rendered":{"charts":0,"images":1,"macros":1,"external_links":0,"defined_names":0,"comments":3,"pivot_tables":0},"unopened":[],"bounds":{"document_bytes":16777216,"sheet_cells":100000,"rows_first":2000,"rows_last":500,"rows_between":2000,"halvings":0,"cell_chars":16384,"cell_head_chars":4096},"cells_cut":0,"cells_raw":0,"read":"whole","date_system":"1900"}

{"sheet":"Só Remanejamento","index":0,"n_rows":23,"n_cols":8,"rows_kept":23,"cut":false,"hidden":false,"merged":[[17,2,17,4],[6,1,6,4],[7,1,7,4],[8,2,8,4],[9,2,9,4],[10,2,10,4],[11,2,11,4],[12,2,12,4],[13,2,13,4],[14,2,14,4],[15,1,15,4],[16,2,16,4],[18,2,18,4],[19,1,19,4],[20,2,20,4],[21,2,21,4],[22,1,22,4]]}
[]
[]
[]
[null,null,null,null,null,null,"REMANEJAMENTO DE RECURSOS"]
[]
[]
[null,"RUBRICAS",null,null,null,"Orçamento aprovado","Alterações propostas","Orçamento proposto"]
[null,"Despesas Correntes",null,null,null,{"$f":"SUM(F9:F15)","v":0},{"$f":"SUM(G9:G15)","v":0},{"$f":"SUM(H9:H15)","v":0}]
[null,null,"Pessoal - exceto bolsas de estudantes",null,null,null,null,{"$f":"F9+G9","v":0}]
[null,null,"Pessoal - apenas bolsas de estudantes",null,null,null,null,{"$f":"F10+G10","v":0}]
[null,null,"Serviço de Terceiros (PF + PJ + Despesas Importação)",null,null,null,null,0]
[null,null,"Passagens",null,null,null,null,0]
[null,null,"Diárias",null,null,null,null,0]
[null,null,"Material de Consumo Nacional",null,null,null,null,0]
[null,null,"Material de Consumo Importado",null,null,null,null,0]
[null,"Despesas de Capital",null,null,null,{"$f":"SUM(F17:F19)","v":0},{"$f":"SUM(G17:G19)","v":0},{"$f":"SUM(H17:H19)","v":0}]
[null,null,"Equipamento e Mat. Perm. Nacional",null,null,null,null,0]
[null,null,"Equipamento e Mat. Perm. Importado",null,null,null,null,0]
[null,null,"Obras",null,null,null,null,0]
[null,"Total Geral (sem ressarcimento)",null,null,null,{"$f":"F8+F16","v":0},{"$f":"G8+G16","v":0},{"$f":"H8+H16","v":0}]
[null,null,"Ressarcimentos",null,null,null,null,0]
[null,null,"Taxa da Fundação",null,null,null,null,0]
[null,"Total Geral (com ressarcimento e taxas)",null,null,null,{"$f":"SUM(F20:F22)","v":0},{"$f":"SUM(G20:G22)","v":0},{"$f":"SUM(H20:H22)","v":0}]

{"sheet":"Só Rendimentos","index":1,"n_rows":27,"n_cols":8,"rows_kept":27,"cut":false,"hidden":false,"merged":[[24,3,24,4],[25,3,25,4],[26,3,26,4],[19,1,19,4],[20,2,20,4],[22,1,22,4],[21,2,21,4],[16,2,16,4],[17,2,17,4],[18,2,18,4],[13,2,13,4],[14,2,14,4],[15,1,15,4],[6,1,6,4],[10,2,10,4],[11,2,11,4],[12,2,12,4],[7,1,7,4],[8,2,8,4],[9,2,9,4]]}
[]
[]
[]
[null,null,null,null,null,null,"USO DE RENDIMENTOS"]
[]
[]
[null,"RUBRICAS",null,null,null,"Orçamento aprovado","Utilização dos rendimentos","Orçamento proposto"]
[null,"Despesas Correntes",null,null,null,{"$f":"SUM(F9:F15)","v":0},{"$f":"SUM(G9:G15)","v":0},{"$f":"SUM(H9:H15)","v":0}]
[null,null,"Pessoal - exceto bolsas de estudantes",null,null,null,null,{"$f":"F9+G9","v":0}]
[null,null,"Pessoal - apenas bolsas de estudantes",null,null,null,null,{"$f":"F10+G10","v":0}]
[null,null,"Serviço de Terceiros (PF + PJ + Despesas Importação)",null,null,null,null,0]
[null,null,"Passagens",null,null,null,null,0]
[null,null,"Diárias",null,null,null,null,0]
[null,null,"Material de Consumo Nacional",null,null,null,null,0]
[null,null,"Material de Consumo Importado",null,null,null,null,0]
[null,"Despesas de Capital",null,null,null,{"$f":"SUM(F17:F19)","v":0},{"$f":"SUM(G17:G19)","v":0},{"$f":"SUM(H17:H19)","v":0}]
[null,null,"Equipamento e Mat. Perm. Nacional",null,null,null,null,0]
[null,null,"Equipamento e Mat. Perm. Importado",null,null,null,null,0]
[null,null,"Obras",null,null,null,null,0]
[null,"Total Geral (sem ressarcimento)",null,null,null,{"$f":"F8+F16","v":0},{"$f":"G8+G16","v":0},{"$f":"H8+H16","v":0}]
[null,null,"Ressarcimentos",null,null,null,null,0]
[null,null,"Taxa da Fundação",null,null,null,null,0]
[null,"Total Geral (com ressarcimento e taxas)",null,null,null,{"$f":"SUM(F20:F22)","v":0},{"$f":"SUM(G20:G22)","v":0},{"$f":"SUM(H20:H22)","v":0}]
[]
[null,null,"Total de rendimentos no projeto"]
[null,null,"Total dos rendimentos utilizados",{"$f":"G23","v":0}]
[null,null,"Saldo de rendimentos",{"$f":"D25-D26","v":0}]

{"sheet":"Remanejamento e Rendimentos","index":2,"n_rows":27,"n_cols":8,"rows_kept":27,"cut":false,"hidden":false,"merged":[[17,2,17,4],[6,1,6,4],[7,1,7,4],[8,2,8,4],[9,2,9,4],[10,2,10,4],[11,2,11,4],[12,2,12,4],[13,2,13,4],[14,2,14,4],[15,1,15,4],[16,2,16,4],[25,3,25,4],[26,3,26,4],[18,2,18,4],[19,1,19,4],[20,2,20,4],[21,2,21,4],[22,1,22,4],[24,3,24,4]]}
[]
[]
[]
[null,null,null,null,null,null,"REMANEJAMENTO e USO DE RENDIMENTOS"]
[]
[]
[null,"RUBRICAS",null,null,null,"Orçamento aprovado","Alterações propostas","Orçamento proposto"]
[null,"Despesas Correntes",null,null,null,{"$f":"SUM(F9:F15)","v":0},{"$f":"SUM(G9:G15)","v":0},{"$f":"SUM(H9:H15)","v":0}]
[null,null,"Pessoal - exceto bolsas de estudantes",null,null,null,null,{"$f":"F9+G9","v":0}]
[null,null,"Pessoal - apenas bolsas de estudantes",null,null,null,null,{"$f":"F10+G10","v":0}]
[null,null,"Serviço de Terceiros (PF + PJ + Despesas Importação)",null,null,null,null,0]
[null,null,"Passagens",null,null,null,null,0]
[null,null,"Diárias",null,null,null,null,0]
[null,null,"Material de Consumo Nacional",null,null,null,null,0]
[null,null,"Material de Consumo Importado",null,null,null,null,0]
[null,"Despesas de Capital",null,null,null,{"$f":"SUM(F17:F19)","v":0},{"$f":"SUM(G17:G19)","v":0},{"$f":"SUM(H17:H19)","v":0}]
[null,null,"Equipamento e Mat. Perm. Nacional",null,null,null,null,0]
[null,null,"Equipamento e Mat. Perm. Importado",null,null,null,null,0]
[null,null,"Obras",null,null,null,null,0]
[null,"Total Geral (sem ressarcimento)",null,null,null,{"$f":"F8+F16","v":0},{"$f":"G8+G16","v":0},{"$f":"H8+H16","v":0}]
[null,null,"Ressarcimentos",null,null,null,null,0]
[null,null,"Taxa da Fundação",null,null,null,null,0]
[null,"Total Geral (com ressarcimento e taxas)",null,null,null,{"$f":"SUM(F20:F22)","v":0},{"$f":"SUM(G20:G22)","v":0},{"$f":"SUM(H20:H22)","v":0}]
[]
[null,null,"Total de rendimentos no projeto"]
[null,null,"Total dos rendimentos utilizados",{"$f":"G23","v":0}]
[null,null,"Saldo de rendimentos",{"$f":"D25-D26","v":0}]